Cogmind - Beta 13 @@@ ROGUE MODE // 2024.04.04 @ 20:22:52 Player: Tesserakt Result: Destroyed self via exploding Fusion Modulator Performance ------------- Evolutions (0) 0 Regions Visited (1) 200 Robots Destroyed (23) 115 Value Destroyed (526) 526 Prototype IDs (0) 0 Alien Tech Used (0) 0 Bonus (0) 0 TOTAL SCORE: 841 Bonus ------- None Cogmind --------- Core Integrity 0/250 Matter 248/300 Energy 62/100 System Corruption 3% Temperature Cool (12) Movement Walking (120) Location -10/Materials Parts ------- > --- POWER (1) -------- (None) > --- PROPULSION (2) --- Aluminum Leg Aluminum Leg > --- UTILITY (2) ------ Signal Interpreter > --- WEAPON (2) ------- Rocket Launcher Rocket Launcher > --- INVENTORY (5) ---- Aluminum Leg Sensor Array Seismic Detector Power Shielding Small Laser Peak State ------------ > --- POWER ------------ Light Ion Engine > --- PROPULSION ------- Light Treads Light Treads > --- UTILITY ---------- Visual Processing Unit Improved Terrain Scanner > --- WEAPON ----------- EM Pulse Gun Small Laser > --- INVENTORY -------- Light Ion Engine Light Ion Engine Seismic Detector Seismic Detector Small Laser [Rating: 10] Favorites ----------- Power Light Ion Engine Engine Light Ion Engine Power Core Light Nuclear Core Propulsion Light Treads Treads Light Treads Leg Aluminum Leg Utility Signal Interpreter Device Improved Terrain Scanner Storage Small Storage Unit Processor Signal Interpreter Weapon Small Laser Energy Gun Small Laser Ballistic Gun Light Assault Rifle Launcher Rocket Launcher Build | -11 -10 ------- Run | Yrd Mat Slots Evolved . | . . Power . | . . Propulsion . | . . Utility . | . . Weapon . | . . Parts Attached 29 | 8 21 Power 6 | 1 5 Engine 5 | 1 4 Core 1 | . 1 Reactor . | . . Propulsion 8 | 2 6 Treads 4 | 2 2 Leg 4 | . 4 Wheel . | . . Hover . | . . Flight . | . . Utility 8 | 3 5 Device 5 | 2 3 Storage 1 | 1 . Processor 2 | . 2 Hackware . | . . Protection . | . . Artifact . | . . Weapon 7 | 2 5 Energy Gun 3 | 2 1 Energy Cannon . | . . Ballistic Gun 2 | . 2 Ballistic Cannon . | . . Launcher 2 | . 2 Special Weapon . | . . Impact Weapon . | . . Slashing Weapon . | . . Piercing Weapon . | . . Special Melee Weapon . | . . Unidentified Prototypes . | . . Parts Lost 8 | . 8 Power 3 | . 3 Propulsion 1 | . 1 Utility 1 | . 1 Weapon 3 | . 3 Highest Loss Streak 5 | . 5 To Critical Strikes . | . . Average Slot Usage (%) 82 | . 82 Engine 9 | . 9 Treads 17 | . 17 Leg 4 | . 4 Device 9 | . 9 Processor 12 | . 12 Energy Gun 16 | . 16 Ballistic Gun 8 | . 8 Naked Turns . | . . Heaviest Build 12 | 12 9 Greatest Support 40 | 40 40 Greatest Overweight (x) 2 | . 2 Average Overweight (x) . | . . Largest Inventory Capacity 8 | 8 5 Average Capacity 5 | 5 5 Most Carried 6 | 6 5 Average Carried 4 | 3 4 Final Capacity 5 | 5 5 Final Carried 5 | 4 5 Class Distribution -------------------- 80% | Mutant 19% | Scavenger-Mutant Dominant Class ---------------- Mutant | -10/Materials Resources | -11 -10 ----------- Run | Yrd Mat Matter Collected 478 | 280 198 Remotely . | . . Salvage Created 793 | 131 662 Parts 55 | 15 40 Haulers Intercepted . | . . Recyclers Shooed 2 | . 2 Parts Field Recycled . | . . Retrieved Matter . | . . Parts Self-Destructed . | . . Prevented . | . . Kills | -11 -10 ------- Run | Yrd Mat Combat Hostiles Destroyed 17 | . 17 Guns 16 | . 16 AOE 1 | . 1 Classes Destroyed 5 | 2 3 Tunneler 3 | 3 . Recycler 2 | 1 1 Watcher 1 | . 1 Swarmer 6 | . 6 Grunt 11 | . 11 Best Kill Streak 5 | 3 5 Combat Bots Only 5 | . 5 Max Kills in Single Turn 2 | 1 2 Gunslinging 1 | . 1 Exploded 1 | . 1 Melee . | . . Uniques/NPCs Destroyed . | . . Combat | -11 -10 -------- Run | Yrd Mat Hostile Shots Fired 119 | . 119 Missed 19 | . 19 Damage Taken 1132 | . 1132 Core 331 | . 331 Absorbed by Shields . | . . Regen/Repaired (Parts) 46 | . 46 Core Remaining (%) 100 | 100 . Volleys Fired 72 | 4 68 Largest 2 | 2 2 Hottest 80 | 80 80 Shots Fired 127 | 8 119 Gun 125 | 8 117 Cannon . | . . Launcher 2 | . 2 Special . | . . Kinetic 37 | . 37 Thermal 45 | 4 41 Explosive 2 | . 2 Electromagnetic 43 | 4 39 Robot Hit Streak 9 | 3 9 Robot Miss Streak 4 | 1 4 Penetration Max . | . . Secondary Targets 4 | . 4 Max Gunslinging Chain 1 | . 1 Shots Hit Robots 73 | 4 69 Core Hits 37 | 5 32 Critical Kills . | . . Critical Parts Destroyed . | . . Critical Strikes 1 | . 1 Corrupt 1 | . 1 Melee Attacks . | . . Impact . | . . Slashing . | . . Piercing . | . . Sneak Attacks . | . . Combat Hostiles . | . . Follow-up Attacks . | . . Damage Inflicted 896 | 87 809 Guns 797 | 87 710 Cannons . | . . Explosions 96 | . 96 Melee . | . . Ramming 3 | . 3 Kinetic 235 | . 235 Thermal 290 | 33 257 Explosive 49 | . 49 Electromagnetic 319 | 54 265 Impact . | . . Slashing . | . . Piercing . | . . Highest Corruption 3 | . 3 Average Corruption 2 | . 2 Corruption Purged . | . . Corruption Blocked . | . . Effects 10 | . 10 Matter Fused 2 | . 2 Energy Discharges 1 | . 1 Parts Rejected 2 | . 2 Data Loss (major) 2 | . 2 Misfires 1 | . 1 Weapon Failures 2 | . 2 Overload Shots . | . . Overflow Damage 9 | . 9 Projectiles . | . . Explosions 9 | . 9 Melee . | . . Knockbacks . | . . Impact . | . . Kinetic . | . . Secondary . | . . Self-Inflicted Damage 133 | . 133 Shots 2 | . 2 Rammed . | . . Targets Rammed 3 | . 3 Kicked 3 | . 3 Crushed . | . . Highest Temperature 201 | 20 201 Average Temperature 73 | 12 77 Received Heat Transfer 369 | . 369 Siege Activations . | . . Robots Corrupted . | . . Combat Hostiles . | . . Parts Fried . | . . Impact Corruptions . | . . Robots Melted . | . . Combat Hostiles . | . . Parts Melted . | . . Heat Transferred 600 | 75 525 Parts Sabotaged . | . . Parts Stolen . | . . Parts Stripped . | . . Power Chain Reactions 1 | . 1 Alert | -11 -10 ------- Run | Yrd Mat Peak Influence 278 | 20 278 Initial 13 | . 13 Average 102 | 14 151 Maximum Alert Level 1 | . 1 Low Security (%) 88 | 100 82 Level 1 11 | . 17 Level 2 . | . . Level 3 . | . . Level 4 . | . . Level 5 . | . . High Security . | . . Max Security . | . . Squads Dispatched 4 | . 4 Investigation 3 | . 3 Extermination . | . . Reinforcement 1 | . 1 Assault . | . . Garrison . | . . Intercept . | . . Searches Triggered . | . . Construction Impeded . | . . Haulers Reinforced . | . . Active Scanning Responses . | . . Cargo Convoy Interrupts . | . . Stealth | -11 -10 --------- Run | Yrd Mat Distress Signals . | . . Communications Jammed . | . . Distress Signals . | . . Times Spotted 19 | . 19 Peak Tracking Total 4 | . 4 Tactical Retreats . | . . Traps | -11 -10 ------- Run | Yrd Mat Traps Triggered 4 | . 4 Indirectly . | . . Trap Hack Attempts . | . . Triggered . | . . Disarmed . | . . Reprogrammed . | . . Reused . | . . Traps Extracted . | . . Installed . | . . Triggered . | . . Machines | -11 -10 ---------- Run | Yrd Mat Machines Disabled 3 | . 3 Max in Single Turn 1 | . 1 Machines Repaired . | . . Machines Dismantled . | . . Machines Sabotaged . | . . Overloaded Fab Kills . | . . Hacking | -11 -10 --------- Run | Yrd Mat Machines Accessed 2 | . 2 Terminals 1 | . 1 Fabricators . | . . Repair Stations 1 | . 1 Recycling Units . | . . Scanalyzers . | . . Garrison Access . | . . Total Hacks 9 | . 9 Successful 5 | . 5 Failed 4 | . 4 Catastrophic . | . . Database Lockouts . | . . Manual 2 | . 2 Terminals 5 | . 5 Fabricators . | . . Repair Stations 4 | . 4 Recycling Units . | . . Scanalyzers . | . . Garrison Access . | . . Terminal Hacks 3 | . 3 Record 3 | . 3 Fabricator Hacks . | . . Repair Station Hacks 2 | . 2 Scan Component 1 | . 1 Repair 1 | . 1 Recycling Unit Hacks . | . . Scanalyzer . | . . Garrison Access Hacks . | . . Unauthorized Hacks . | . . Terminals . | . . Fabricators . | . . Repair Stations . | . . Recycling Units . | . . Scanalyzers . | . . Garrison Access . | . . Data Cores Recovered . | . . Used . | . . Hacking Detections 2 | . 2 Full Trace Events 2 | . 2 Feedback Events . | . . Feedback Blocked . | . . Robot Schematics Acquired . | . . Robots Built . | . . Authchips . | . . Time . | . . Total Robot Build Rating . | . . Part Schematics Acquired . | . . Parts Built . | . . Authchips . | . . Time . | . . Total Part Build Rating . | . . Parts Repaired 1 | . 1 Time 26 | . 26 Parts Recycled . | . . Recycled Matter . | . . Retrieved Matter . | . . Retrieved Components . | . . Parts Scanalyzed . | . . Part Schematics Acquired . | . . Parts Damaged . | . . Bothacking | -11 -10 ------------ Run | Yrd Mat Used RIF Installer . | . . Robots Hacked . | . . Non-combat . | . . Combat . | . . Robot Hacks Applied . | . . Relay Couplers Released . | . . Fabnet Peak Effective % . | . . Robots Rewired . | . . Allies Hacked . | . . Hacks Repelled . | . . Allies | -11 -10 -------- Run | Yrd Mat Total Allies . | . . Largest Group . | . . Highest-Rated Group . | . . Highest-Rated Ally . | . . Total Orders . | . . Ally Attacks . | . . Total Damage . | . . Kills . | . . Allies Corrupted . | . . Allies Melted . | . . Intel | -11 -10 ------- Run | Yrd Mat Robot Analysis Total . | . . Derelict Logs Recovered . | . . Drone Launches . | . . Drone Recoveries . | . . Exploration | -11 -10 ------------- Run | Yrd Mat Turns Passed 922 | 330 592 Spaces Moved 432 | 190 242 Core 19 | 8 11 Treads 367 | 182 185 Legs 46 | . 46 Wheels . | . . Hover . | . . Flight . | . . Fastest Speed 50 | 50 50 Average Speed 152 | 155 150 Slowest Speed 160 | 160 160 Overloaded Moves . | . . Propulsion Burnouts . | . . Robots Hopped . | . . Cave-ins Triggered . | . . Exploration Rate (%) 27 | 10 45 Regions Visited 1 Branch Regions . Pre-discovered Areas . | . . Known Exits Taken . | . . Unknown Exits Taken 1 | 1 . Scrap Searched . | . . Spaces Dug . | . . Terrain Destroyed 11 | . 11 Melee . | . . Projectile . | . . AOE 11 | . 11 Terrain Rammed . | . . Walls Destroyed . | . . Machines Disabled . | . . Actions | -11 -10 --------- Run | Yrd Mat Total 572 | 218 354 Wait . | . . Move 431 | 189 242 Hop . | . . Pick Up 25 | 14 11 Fast Attach 7 | . 7 Attach 13 | 7 6 Detach . | . . Swap 9 | 1 8 Drop 12 | 3 9 Fire 72 | 4 68 Melee . | . . Ram . | . . Kick 3 | . 3 Crush . | . . Escape Stasis . | . . Rewire . | . . Trap . | . . Miscellaneous . | . . Route ------- -11/Scrapyard -10/Materials (discovered 2 exits: [*Min x2]) History --------- Turn | Location | Event 2 | -11/Scrapyard | Discovered new exit (range 16) 331 | -11/Scrapyard | Entered Materials 332 | -10/Materials | Build established: Mutant 357 | -10/Materials | Discovered new exit (range 5) 398 | -10/Materials | Discovered new exit (range 17) 679 | -10/Materials | Core integrity fell below 50% 714 | -10/Materials | Lost 5 parts (1p1n1u2w) 801 | -10/Materials | Repaired Ion Engine 828 | -10/Materials | Core integrity fell below 20% 923 | -10/Materials | Destroyed self via exploding Fusion Modulator Last Messages --------------- 00857_ Ion Engine destroyed. 00857_ G-34 Mercenary destroyed. 00859_ Acquired 13 matter. 00870_ System corrupted: Energy discharge (-37). 00871_ Repair Station unresponsive. 00874_ Acquired Aluminum Leg. 00875_ K-01 Serf collects debris. 00876_ Acquired Aluminum Leg. 00878_ K-01 Serf collects debris. 00881_ Acquired 20 matter. 00882_ K-01 Serf collects debris. 00900_ Acquired Field Recycling Unit. 00902_ Dropped Field Recycling Unit. 00905_ Acquired Rocket Launcher. 00906_ Dropped Lgt. Assault Rifle. 00908_ Acquired Rocket Launcher. 00909_ K-01 Serf cleans the Fusion Modulator. 00920_ Destroyed Lgt. Ion Engine. 00923_ Fusion Modulator explodes. Map ----- +----------------------------------------------------+ | ??????????????????????????????????????????? | | ??????????????????????????????????????????? | | ??????????????????????????????????????????? | | ??????????????????????????????????????????? | | ??????????????????????????????????????????? | | ??????????????????????????????????????????? | | ??????????????????????????????????????????? | | ??????????????????????????????????????????? | | ??????????????????????????????????????????? | | ??????????????????????????????????????????? | | ??????????????????????????????????????????? | | ??????????????????????????????????????????? | | ??????????? ????????????????????????????? | | ????????? ????????????????????????????? | | ??????? ???????????????????????????? | | ???????# ???????????????????????????? | | ??????# ??????????????????????????? | | ???????# ??????????????????????????? | | ???????# ????########??????????????? | | ???????# ???#]]!![[#??????????????? | | ???????# #### [!![[#??????????????? | | ???????# # ## #??????????????? | | ???????# # ##????????####??? | | ???????# #####+## ## | | ???????# | | ???????# @ < | | ???????# """ """ | | ???????# """ """ ## ## | | ???????# """ """ #????"|"??? | | ???????+ #??????"??? | | ???????# t ##########? | | ???????# """ """ """ ## #? | | ???????###### """ """ """ # "" #? | | ????????????# """ """ """ # T" #? | | ?????????? k ! u + "" #? | | ???????????## % # # | | ????????????# ###########+## # """ #? | | ????????????# ??????# %!=## ## """ #? | | ????????????#???????# ## ## """ #? | | ????????????????????#"""[!%## ## #? | | ????????????????????#"R* =!+ + ## | | ????????????????????#""" =## ## #? | | ????????????????????# ### #####+#####? | | ????????????????????########?# ##??#*#?#### | | ?????????????????????????????# #?###%###!! | | ????????????????????????????## #?# %== #!! | | ???????????????????????? ????# ###= * # | | ?????????????????????????????# =% + | | ?????????????????????????????##### # ! | | ?????????????????????????????????# #### | +----------------------------------------------------+ Best States ------------- Heat Dissipation 25 Energy Generation 14 Energy Capacity 250 Matter Stores 300 Matter Capacity 300 Sight Range 16 Robot Scan Range 14 Terrain Scan Range 16 Terrain Scan Density 10 Evasion (%) 55 Recoil Reduction 2 Item Schematics ----------------- None Robot Schematics ------------------ None Fabricated ------------ Nothing Alien Tech Used ----------------- None Achievements -------------- Party Time Challenges ------------ None Game ------ Seed CloakSkeletonMapper Manual? 0 Play Time 00:17:52 Cumulative 1.9 hours Start 2024.04.04 @ 20:07:09 End 2024.04.04 @ 20:22:52 Sessions 1 Manual Loads 0 Difficulty Rogue Special Mode None Game No. 4 Rogue 4 Adventurer 0 Explorer 0 Win Type - Total 0 Types 0/0/0/0/0/0/0/0/0 Lore% 0 Gallery% 4 Achievement% 5 Wizard Run 0 Options --------- Layout 1 ASCII 0 Keyboard 0 Movement Mouse Keybinds 0 Fullscreen 2 Font 24/Smallcaps Map View 50x35 Zoom Use 0% Tactical HUD 1 Map Filters NONE Filters NONE Steam 1 RUN: 00ad665f-5ed5-4d30-b2f3-fd6cb4328328